[Event "Early-Titled-Tuesday-Blitz-February-20-2024"]
[Site "Chess.com"]
[Date "2024.02.20"]
[Round "2"]
[White "tuschessCM1"]
[Black "Kopytkin"]
[Result "1-0"]
[WhiteElo "2668"]
[BlackElo "2380"]
[TimeControl "180+1"]
[EndTime "8:18:06 PST"]
[Termination "tuschessCM1 won on time"]

1. b3 {[%clk 0:03:00.9]} 1... Nf6 {[%clk 0:02:57.5]} 2. Bb2 {[%clk 0:03:00.9]}
2... g6 {[%clk 0:02:58.2]} 3. Bxf6 {[%clk 0:02:58.3]} 3... exf6 {[%clk
0:02:57.8]} 4. Nf3 {[%clk 0:02:58.3]} 4... f5 {[%clk 0:02:57]} 5. d4 {[%clk
0:02:58.2]} 5... Bg7 {[%clk 0:02:56.3]} 6. g3 {[%clk 0:02:57.8]} 6... b6 {[%clk
0:02:43.1]} 7. Bg2 {[%clk 0:02:57.1]} 7... Bb7 {[%clk 0:02:43.7]} 8. O-O {[%clk
0:02:57.2]} 8... O-O {[%clk 0:02:44]} 9. c3 {[%clk 0:02:57.2]} 9... Nc6 {[%clk
0:02:12.1]} 10. e3 {[%clk 0:02:55.1]} 10... Ne7 {[%clk 0:02:10.9]} 11. Nbd2
{[%clk 0:02:52.8]} 11... h6 {[%clk 0:02:11.1]} 12. h4 {[%clk 0:02:51.6]} 12...
Kh7 {[%clk 0:02:05.5]} 13. Re1 {[%clk 0:02:49.8]} 13... Ng8 {[%clk 0:02:05.6]}
14. Rc1 {[%clk 0:02:45.1]} 14... Nf6 {[%clk 0:02:05.7]} 15. c4 {[%clk
0:02:38.8]} 15... Ne4 {[%clk 0:02:00.1]} 16. d5 {[%clk 0:02:38.6]} 16... Bb2
{[%clk 0:01:46.4]} 17. Rb1 {[%clk 0:02:01.2]} 17... Nc3 {[%clk 0:01:38.4]} 18.
Qc2 {[%clk 0:02:01.6]} 18... Nxb1 {[%clk 0:01:38.5]} 19. Qxb2 {[%clk 0:02:02]}
19... Nxd2 {[%clk 0:01:38.6]} 20. Nxd2 {[%clk 0:02:02.9]} 20... Re8 {[%clk
0:01:29.9]} 21. Nf3 {[%clk 0:02:02.3]} 21... Qe7 {[%clk 0:01:27.1]} 22. Nd4
{[%clk 0:01:50.4]} 22... Qe5 {[%clk 0:01:19.9]} 23. Qc1 {[%clk 0:01:44.4]} 23...
Rac8 {[%clk 0:01:14.4]} 24. Rd1 {[%clk 0:01:27.2]} 24... a6 {[%clk 0:01:14.2]}
25. Nf3 {[%clk 0:01:21.5]} 25... Qf6 {[%clk 0:01:11.7]} 26. Ne1 {[%clk
0:01:08.8]} 26... c5 {[%clk 0:01:10.6]} 27. Nd3 {[%clk 0:00:50.7]} 27... d6
{[%clk 0:01:09.2]} 28. a4 {[%clk 0:00:49]} 28... Rc7 {[%clk 0:01:05.4]} 29. Qc2
{[%clk 0:00:46.4]} 29... Rce7 {[%clk 0:01:05.3]} 30. Rb1 {[%clk 0:00:38.9]}
30... Bc8 {[%clk 0:01:03.9]} 31. b4 {[%clk 0:00:33.3]} 31... Bd7 {[%clk
0:01:00.5]} 32. bxc5 {[%clk 0:00:31.5]} 32... bxc5 {[%clk 0:00:56.3]} 33. Rb6
{[%clk 0:00:19.9]} 33... Qa1+ {[%clk 0:00:44]} 34. Kh2 {[%clk 0:00:20.1]} 34...
Bxa4 {[%clk 0:00:42.3]} 35. Qd2 {[%clk 0:00:20.3]} 35... Rd8 {[%clk 0:00:37.6]}
36. Rxa6 {[%clk 0:00:18.1]} 36... Qd1 {[%clk 0:00:38.2]} 37. Qa5 {[%clk
0:00:17.2]} 37... Rdd7 {[%clk 0:00:19.2]} 38. Nb2 {[%clk 0:00:15.6]} 38... Qg4
{[%clk 0:00:14.4]} 39. Qxa4 {[%clk 0:00:12.4]} 39... f4 {[%clk 0:00:14.9]} 40.
exf4 {[%clk 0:00:10.5]} 40... Rb7 {[%clk 0:00:14.8]} 41. Nd3 {[%clk 0:00:09.7]}
41... Re2 {[%clk 0:00:14.9]} 42. Ra8 {[%clk 0:00:07]} 42... Rbb2 {[%clk
0:00:05.4]} 43. Nxb2 {[%clk 0:00:04.5]} 43... Rxf2 {[%clk 0:00:05.7]} 44. Qe8
{[%clk 0:00:05.1]} 44... Rxg2+ {[%clk 0:00:04.7]} 45. Kxg2 {[%clk 0:00:06]}
45... Qe2+ {[%clk 0:00:05.1]} 46. Qxe2 {[%clk 0:00:06.4]} 1-0

[Event "Early-Titled-Tuesday-Blitz-February-20-2024"]
[Site "Chess.com"]
[Date "2024.02.20"]
[Round "2"]
[White "Predator0608"]
[Black "MatthewG-p4p"]
[Result "0-1"]
[WhiteElo "2588"]
[BlackElo "2877"]
[TimeControl "180+1"]
[EndTime "8:18:07 PST"]
[Termination "MatthewG-p4p won by resignation"]

1. e4 {[%clk 0:02:49.3]} 1... e6 {[%clk 0:02:58.8]} 2. d4 {[%clk 0:02:48.9]}
2... d5 {[%clk 0:02:59.4]} 3. Nd2 {[%clk 0:02:49.5]} 3... a6 {[%clk 0:02:59.7]}
4. Ngf3 {[%clk 0:02:48]} 4... Nf6 {[%clk 0:02:59.7]} 5. e5 {[%clk 0:02:44]} 5...
Nfd7 {[%clk 0:02:59.3]} 6. Be2 {[%clk 0:02:41.4]} 6... c5 {[%clk 0:02:59.9]} 7.
c3 {[%clk 0:02:41.9]} 7... Nc6 {[%clk 0:03:00.6]} 8. O-O {[%clk 0:02:41.9]} 8...
Be7 {[%clk 0:02:45.6]} 9. Nb3 {[%clk 0:02:39.7]} 9... O-O {[%clk 0:02:44.2]} 10.
Ne1 {[%clk 0:02:39.3]} 10... f6 {[%clk 0:02:42.7]} 11. exf6 {[%clk 0:02:34.6]}
11... Nxf6 {[%clk 0:02:38.4]} 12. Nxc5 {[%clk 0:02:34.5]} 12... Bxc5 {[%clk
0:02:37.3]} 13. dxc5 {[%clk 0:02:35.4]} 13... e5 {[%clk 0:02:38.1]} 14. Nc2
{[%clk 0:02:24.5]} 14... Be6 {[%clk 0:02:37]} 15. Re1 {[%clk 0:02:19.4]} 15...
Qe7 {[%clk 0:02:36.5]} 16. b4 {[%clk 0:02:18]} 16... Rad8 {[%clk 0:02:36.6]} 17.
a3 {[%clk 0:02:12.2]} 17... Ne4 {[%clk 0:02:33.9]} 18. Bf3 {[%clk 0:01:30.5]}
18... Nxc3 {[%clk 0:02:05.7]} 19. Qd2 {[%clk 0:01:02.2]} 19... e4 {[%clk
0:01:26.4]} 20. Qxc3 {[%clk 0:01:00]} 20... exf3 {[%clk 0:01:26.8]} 21. Nd4
{[%clk 0:00:24.2]} 21... Nxd4 {[%clk 0:00:46.3]} 22. Qxd4 {[%clk 0:00:25.1]}
22... Qf7 {[%clk 0:00:43.3]} 23. Bb2 {[%clk 0:00:24.9]} 23... Rde8 {[%clk
0:00:43.2]} 24. Re3 {[%clk 0:00:24.2]} 24... Qg6 {[%clk 0:00:42.9]} 25. g3
{[%clk 0:00:21.2]} 25... Rf7 {[%clk 0:00:36]} 26. Rae1 {[%clk 0:00:17.4]} 26...
Qf5 {[%clk 0:00:36.5]} 27. Qd3 {[%clk 0:00:15]} 27... Qg4 {[%clk 0:00:32.2]} 28.
Bd4 {[%clk 0:00:12.7]} 28... Ree7 {[%clk 0:00:29.4]} 29. Bb2 {[%clk 0:00:12.4]}
29... Qh3 {[%clk 0:00:24.3]} 30. Qf1 {[%clk 0:00:12.5]} 30... Qh5 {[%clk
0:00:23.1]} 31. Re5 {[%clk 0:00:12]} 31... Qg4 {[%clk 0:00:20.1]} 32. h3 {[%clk
0:00:12.5]} 32... Qg6 {[%clk 0:00:20.6]} 33. Kh2 {[%clk 0:00:12.3]} 33... Qh6
{[%clk 0:00:19.2]} 34. h4 {[%clk 0:00:11.5]} 34... Qg6 {[%clk 0:00:18.2]} 35.
Bc1 {[%clk 0:00:11.8]} 35... Re8 {[%clk 0:00:18]} 36. Bg5 {[%clk 0:00:12.3]}
36... Rf5 {[%clk 0:00:17]} 37. Rxf5 {[%clk 0:00:10.9]} 37... Qxf5 {[%clk
0:00:17.9]} 38. Re3 {[%clk 0:00:10.8]} 38... d4 {[%clk 0:00:17.7]} 39. Re1
{[%clk 0:00:10.6]} 39... d3 {[%clk 0:00:17.8]} 40. Rd1 {[%clk 0:00:10.6]} 40...
Bc4 {[%clk 0:00:17.4]} 41. Re1 {[%clk 0:00:10.9]} 41... Re2 {[%clk 0:00:16.9]}
42. Rc1 {[%clk 0:00:10.3]} 42... d2 {[%clk 0:00:13.4]} 43. Rxc4 {[%clk
0:00:10.1]} 43... Re1 {[%clk 0:00:13.7]} 44. Rc1 {[%clk 0:00:04.9]} 44... dxc1=Q
{[%clk 0:00:11.4]} 0-1

[Event "Early-Titled-Tuesday-Blitz-February-20-2024"]
[Site "Chess.com"]
[Date "2024.02.20"]
[Round "2"]
[White "WilsonPalencia21"]
[Black "bangchess21"]
[Result "0-1"]
[WhiteElo "2540"]
[BlackElo "2771"]
[TimeControl "180+1"]
[EndTime "8:18:07 PST"]
[Termination "bangchess21 won on time"]

1. d4 {[%clk 0:03:00.9]} 1... a6 {[%clk 0:02:59.6]} 2. c4 {[%clk 0:02:59.5]}
2... b5 {[%clk 0:02:58.3]} 3. Nd2 {[%clk 0:02:54.3]} 3... Bb7 {[%clk 0:02:56.9]}
4. e3 {[%clk 0:02:52.1]} 4... Nf6 {[%clk 0:02:53.2]} 5. Ngf3 {[%clk 0:02:49.5]}
5... bxc4 {[%clk 0:02:52.9]} 6. Bxc4 {[%clk 0:02:48.5]} 6... e6 {[%clk
0:02:53.7]} 7. O-O {[%clk 0:02:48.2]} 7... Be7 {[%clk 0:02:53.7]} 8. b3 {[%clk
0:02:48]} 8... O-O {[%clk 0:02:53.4]} 9. Bb2 {[%clk 0:02:48]} 9... a5 {[%clk
0:02:52.7]} 10. a3 {[%clk 0:02:45.7]} 10... d6 {[%clk 0:02:39.9]} 11. Qc2 {[%clk
0:02:45]} 11... Nbd7 {[%clk 0:02:38.9]} 12. e4 {[%clk 0:02:37.9]} 12... Nb6
{[%clk 0:02:31.5]} 13. Bd3 {[%clk 0:02:35.6]} 13... g6 {[%clk 0:02:30.4]} 14.
Rac1 {[%clk 0:02:29.9]} 14... Rc8 {[%clk 0:02:29.7]} 15. Rfe1 {[%clk 0:02:23.2]}
15... Nfd7 {[%clk 0:02:27.1]} 16. Nc4 {[%clk 0:02:16.7]} 16... Nxc4 {[%clk
0:02:25.4]} 17. bxc4 {[%clk 0:02:16.8]} 17... Bf6 {[%clk 0:02:22.3]} 18. Rb1
{[%clk 0:02:13]} 18... Rb8 {[%clk 0:02:19.4]} 19. Bc3 {[%clk 0:02:12.7]} 19...
c5 {[%clk 0:02:17]} 20. d5 {[%clk 0:02:01.5]} 20... Bxc3 {[%clk 0:02:15.4]} 21.
Qxc3 {[%clk 0:02:02]} 21... Qc7 {[%clk 0:01:25.1]} 22. Rb5 {[%clk 0:01:50.6]}
22... Ra8 {[%clk 0:01:23.4]} 23. dxe6 {[%clk 0:01:38.2]} 23... fxe6 {[%clk
0:01:23.1]} 24. Ng5 {[%clk 0:01:37.1]} 24... Rfe8 {[%clk 0:01:16]} 25. f4 {[%clk
0:01:30.3]} 25... Bc6 {[%clk 0:01:15.7]} 26. Rbb1 {[%clk 0:01:29.6]} 26... Qd8
{[%clk 0:01:14]} 27. h4 {[%clk 0:01:19.4]} 27... h6 {[%clk 0:01:00]} 28. Nf3
{[%clk 0:01:17.3]} 28... e5 {[%clk 0:00:59.5]} 29. Qd2 {[%clk 0:01:00.5]} 29...
Kg7 {[%clk 0:00:56.9]} 30. h5 {[%clk 0:00:32.9]} 30... exf4 {[%clk 0:00:42.4]}
31. hxg6 {[%clk 0:00:24.6]} 31... Qf6 {[%clk 0:00:41.9]} 32. e5 {[%clk
0:00:20.2]} 32... Nxe5 {[%clk 0:00:38.8]} 33. Nxe5 {[%clk 0:00:20.4]} 33... Rxe5
{[%clk 0:00:37.4]} 34. Rxe5 {[%clk 0:00:20.2]} 34... dxe5 {[%clk 0:00:38.3]} 35.
Rb6 {[%clk 0:00:20]} 35... Rd8 {[%clk 0:00:38.4]} 36. Qe2 {[%clk 0:00:20]} 36...
Qd6 {[%clk 0:00:38]} 37. Kh2 {[%clk 0:00:17.9]} 37... e4 {[%clk 0:00:37.5]} 38.
Qb2+ {[%clk 0:00:13.4]} 38... Qd4 {[%clk 0:00:25.4]} 39. Rb7+ {[%clk 0:00:13.4]}
39... Bxb7 {[%clk 0:00:19.1]} 40. Qxb7+ {[%clk 0:00:13.3]} 40... Rd7 {[%clk
0:00:19.8]} 41. Qxe4 {[%clk 0:00:12.9]} 41... Qxe4 {[%clk 0:00:14.6]} 42. Bxe4
{[%clk 0:00:13.8]} 42... Rd4 {[%clk 0:00:15.3]} 0-1

[Event "Early-Titled-Tuesday-Blitz-February-20-2024"]
[Site "Chess.com"]
[Date "2024.02.20"]
[Round "2"]
[White "PositionalPanther"]
[Black "RianKapriaga"]
[Result "1-0"]
[WhiteElo "2515"]
[BlackElo "2262"]
[TimeControl "180+1"]
[EndTime "8:18:07 PST"]
[Termination "PositionalPanther won on time"]

1. Nf3 {[%clk 0:03:00.9]} 1... Nf6 {[%clk 0:02:52.7]} 2. g3 {[%clk 0:03:01.1]}
2... b6 {[%clk 0:02:50.9]} 3. Bg2 {[%clk 0:03:01.2]} 3... Bb7 {[%clk 0:02:50.9]}
4. O-O {[%clk 0:03:02.1]} 4... d6 {[%clk 0:02:50.5]} 5. c4 {[%clk 0:03:02.4]}
5... Nbd7 {[%clk 0:02:50.2]} 6. b3 {[%clk 0:03:01.8]} 6... g6 {[%clk 0:02:49.1]}
7. Bb2 {[%clk 0:03:02.3]} 7... Bg7 {[%clk 0:02:49.2]} 8. d4 {[%clk 0:03:02.7]}
8... O-O {[%clk 0:02:48.5]} 9. Nc3 {[%clk 0:03:03.1]} 9... e5 {[%clk 0:02:47.5]}
10. Qd2 {[%clk 0:03:02.8]} 10... exd4 {[%clk 0:02:46.2]} 11. Nxd4 {[%clk
0:03:02]} 11... Bxg2 {[%clk 0:02:44.1]} 12. Kxg2 {[%clk 0:03:02.9]} 12... Qc8
{[%clk 0:02:42.6]} 13. Kg1 {[%clk 0:02:47.5]} 13... Ne5 {[%clk 0:02:37.1]} 14.
Nd5 {[%clk 0:02:39.9]} 14... Qh3 {[%clk 0:02:25.7]} 15. Nxf6+ {[%clk 0:02:19.5]}
15... Bxf6 {[%clk 0:02:22.2]} 16. Nf3 {[%clk 0:02:07.9]} 16... Nxf3+ {[%clk
0:02:21.1]} 17. exf3 {[%clk 0:02:08.8]} 17... Bxb2 {[%clk 0:02:20]} 18. Qxb2
{[%clk 0:02:09.7]} 18... Rfe8 {[%clk 0:02:19.3]} 19. Rfe1 {[%clk 0:02:08.6]}
19... Re6 {[%clk 0:02:18.1]} 20. Re4 {[%clk 0:02:02.1]} 20... Rae8 {[%clk
0:02:06.5]} 21. Rae1 {[%clk 0:01:58.6]} 21... Qf5 {[%clk 0:02:05.4]} 22. Qe2
{[%clk 0:01:54.4]} 22... c6 {[%clk 0:01:51.1]} 23. Kg2 {[%clk 0:01:54.2]} 23...
d5 {[%clk 0:01:49.5]} 24. cxd5 {[%clk 0:01:09]} 24... cxd5 {[%clk 0:01:48.1]}
25. Re3 {[%clk 0:00:58.4]} 25... h5 {[%clk 0:01:30.8]} 26. h4 {[%clk 0:00:58.1]}
26... a5 {[%clk 0:01:27.8]} 27. Qd2 {[%clk 0:00:55.2]} 27... Kh7 {[%clk
0:01:18.1]} 28. Qd4 {[%clk 0:00:54.8]} 28... b5 {[%clk 0:00:56.4]} 29. R1e2
{[%clk 0:00:44.7]} 29... b4 {[%clk 0:00:53.5]} 30. Qc5 {[%clk 0:00:42.7]} 30...
Rxe3 {[%clk 0:00:23]} 31. Rxe3 {[%clk 0:00:43.6]} 31... Rxe3 {[%clk 0:00:18.3]}
32. fxe3 {[%clk 0:00:44.5]} 32... Qd3 {[%clk 0:00:16.1]} 33. Kf2 {[%clk
0:00:30.8]} 33... Qd2+ {[%clk 0:00:14.4]} 34. Kf1 {[%clk 0:00:28.7]} 34... Kh6
{[%clk 0:00:11.5]} 35. Qd4 {[%clk 0:00:23.9]} 35... Qxd4 {[%clk 0:00:04.5]} 36.
exd4 {[%clk 0:00:24.8]} 36... g5 {[%clk 0:00:04.7]} 37. Ke2 {[%clk 0:00:16.1]}
37... f6 {[%clk 0:00:04.5]} 38. Ke3 {[%clk 0:00:16]} 38... Kg6 {[%clk
0:00:03.8]} 39. f4 {[%clk 0:00:09.5]} 39... Kf5 {[%clk 0:00:02.6]} 40. Kf3
{[%clk 0:00:07.3]} 1-0

[Event "Early-Titled-Tuesday-Blitz-February-20-2024"]
[Site "Chess.com"]
[Date "2024.02.20"]
[Round "2"]
[White "ElephantChessGenius"]
[Black "MKlose11"]
[Result "0-1"]
[WhiteElo "2312"]
[BlackElo "2628"]
[TimeControl "180+1"]
[EndTime "8:18:09 PST"]
[Termination "MKlose11 won by resignation"]

1. e4 {[%clk 0:03:00.9]} 1... e6 {[%clk 0:02:57.8]} 2. d3 {[%clk 0:02:57.8]}
2... d5 {[%clk 0:02:58.7]} 3. Nd2 {[%clk 0:02:58.1]} 3... Nf6 {[%clk 0:02:57.7]}
4. g3 {[%clk 0:02:57.7]} 4... Be7 {[%clk 0:02:58]} 5. Bg2 {[%clk 0:02:58.2]}
5... O-O {[%clk 0:02:57.4]} 6. Ngf3 {[%clk 0:02:58.6]} 6... c5 {[%clk
0:02:57.1]} 7. O-O {[%clk 0:02:58.6]} 7... Nc6 {[%clk 0:02:56.7]} 8. e5 {[%clk
0:02:58.3]} 8... Nd7 {[%clk 0:02:56.3]} 9. Qe2 {[%clk 0:02:58.7]} 9... b5 {[%clk
0:02:56.5]} 10. Re1 {[%clk 0:02:57.7]} 10... a5 {[%clk 0:02:53.3]} 11. h4 {[%clk
0:02:57.1]} 11... Ba6 {[%clk 0:02:52.7]} 12. Nf1 {[%clk 0:02:56.2]} 12... b4
{[%clk 0:02:52]} 13. Ne3 {[%clk 0:02:54.3]} 13... Nd4 {[%clk 0:02:46.3]} 14.
Nxd4 {[%clk 0:02:50.9]} 14... cxd4 {[%clk 0:02:47.2]} 15. Ng4 {[%clk 0:02:51.3]}
15... Rc8 {[%clk 0:02:44.1]} 16. Bf4 {[%clk 0:02:48.9]} 16... Nc5 {[%clk
0:02:31.8]} 17. h5 {[%clk 0:02:33.5]} 17... Na4 {[%clk 0:02:30.9]} 18. b3 {[%clk
0:02:34]} 18... Nc3 {[%clk 0:02:30.1]} 19. Qd2 {[%clk 0:02:34.4]} 19... Nb5
{[%clk 0:02:28.3]} 20. h6 {[%clk 0:02:31.7]} 20... g6 {[%clk 0:02:27.9]} 21.
Rac1 {[%clk 0:02:20.6]} 21... Na3 {[%clk 0:02:21.5]} 22. Kh2 {[%clk 0:02:13.2]}
22... Rc7 {[%clk 0:02:11.4]} 23. Re2 {[%clk 0:02:10.5]} 23... Qa8 {[%clk
0:02:06.2]} 24. Nf6+ {[%clk 0:02:07.1]} 24... Kh8 {[%clk 0:02:04.6]} 25. Bg5
{[%clk 0:02:05.2]} 25... Qd8 {[%clk 0:01:54.9]} 26. Qf4 {[%clk 0:02:01.1]} 26...
Nb5 {[%clk 0:01:52.8]} 27. Rd2 {[%clk 0:01:51.4]} 27... Bb7 {[%clk 0:01:40]} 28.
Bh3 {[%clk 0:01:45.1]} 28... Bc8 {[%clk 0:01:36.7]} 29. Bg4 {[%clk 0:01:28.5]}
29... Bb7 {[%clk 0:01:33.9]} 30. Kg2 {[%clk 0:01:27.6]} 30... Nc3 {[%clk
0:01:31.5]} 31. Ra1 {[%clk 0:01:25]} 31... a4 {[%clk 0:01:30.6]} 32. Qxd4 {[%clk
0:01:24.5]} 32... a3 {[%clk 0:01:27.8]} 33. Kh2 {[%clk 0:01:18.9]} 33... Nb5
{[%clk 0:01:10.3]} 34. Qf4 {[%clk 0:01:16.6]} 34... d4 {[%clk 0:01:08.1]} 35.
Ne4 {[%clk 0:01:11.9]} 35... Bxe4 {[%clk 0:01:01.4]} 36. Bxe7 {[%clk 0:01:08]}
36... Qxe7 {[%clk 0:01:02.3]} 37. Qxe4 {[%clk 0:01:05.7]} 37... Qg5 {[%clk
0:00:47.4]} 38. Qf4 {[%clk 0:00:47.7]} 38... Qxf4 {[%clk 0:00:47.2]} 39. gxf4
{[%clk 0:00:48]} 39... Rfc8 {[%clk 0:00:46.6]} 40. Rc1 {[%clk 0:00:42.2]} 40...
Nc3 {[%clk 0:00:46.7]} 41. Ra1 {[%clk 0:00:36.7]} 41... Kg8 {[%clk 0:00:39]} 42.
Kg3 {[%clk 0:00:35]} 42... Kf8 {[%clk 0:00:39.3]} 43. Bf3 {[%clk 0:00:33.2]}
43... Ke7 {[%clk 0:00:39.5]} 44. Bg2 {[%clk 0:00:32.6]} 44... Rc5 {[%clk
0:00:39]} 45. Bf3 {[%clk 0:00:30.6]} 45... f6 {[%clk 0:00:39.1]} 46. exf6+
{[%clk 0:00:30]} 46... Kxf6 {[%clk 0:00:40]} 47. Bb7 {[%clk 0:00:27.4]} 47...
R8c7 {[%clk 0:00:39.8]} 48. Bf3 {[%clk 0:00:26.1]} 48... e5 {[%clk 0:00:39.2]}
49. fxe5+ {[%clk 0:00:26]} 49... Rxe5 {[%clk 0:00:40.1]} 50. Bg4 {[%clk
0:00:24.3]} 50... Rec5 {[%clk 0:00:34]} 51. Bf3 {[%clk 0:00:21.8]} 51... Kg5
{[%clk 0:00:32.6]} 52. Bg2 {[%clk 0:00:15.4]} 52... Kxh6 {[%clk 0:00:31.7]} 53.
Bf3 {[%clk 0:00:16]} 53... Kg5 {[%clk 0:00:31.6]} 54. Bg2 {[%clk 0:00:16]} 54...
h5 {[%clk 0:00:31.8]} 55. f4+ {[%clk 0:00:16.6]} 55... Kf6 {[%clk 0:00:31.8]}
56. Bh3 {[%clk 0:00:16.7]} 56... Nd5 {[%clk 0:00:31.5]} 57. Re1 {[%clk
0:00:16.5]} 57... Ne3 {[%clk 0:00:30.3]} 58. Rde2 {[%clk 0:00:12.6]} 58... Rxc2
{[%clk 0:00:29.7]} 59. Rxe3 {[%clk 0:00:12.7]} 59... dxe3 {[%clk 0:00:29.4]} 60.
Rxe3 {[%clk 0:00:13.6]} 60... Re7 {[%clk 0:00:29]} 61. Rf3 {[%clk 0:00:12.1]}
61... Rxa2 {[%clk 0:00:28.8]} 62. d4 {[%clk 0:00:12]} 62... Rd2 {[%clk 0:00:28]}
63. f5 {[%clk 0:00:12.6]} 63... g5 {[%clk 0:00:28]} 0-1

[Event "Early-Titled-Tuesday-Blitz-February-20-2024"]
[Site "Chess.com"]
[Date "2024.02.20"]
[Round "2"]
[White "fugadelafuga"]
[Black "Truequitos"]
[Result "1-0"]
[WhiteElo "2349"]
[BlackElo "2556"]
[TimeControl "180+1"]
[EndTime "8:18:09 PST"]
[Termination "fugadelafuga won on time"]

1. e4 {[%clk 0:03:00.9]} 1... e6 {[%clk 0:02:57.1]} 2. d4 {[%clk 0:03:00.1]}
2... d5 {[%clk 0:02:57.7]} 3. exd5 {[%clk 0:02:55.5]} 3... exd5 {[%clk
0:02:58.6]} 4. h3 {[%clk 0:02:54.8]} 4... Bd6 {[%clk 0:02:58.3]} 5. Nf3 {[%clk
0:02:54]} 5... Bf5 {[%clk 0:02:57]} 6. c4 {[%clk 0:02:53.2]} 6... c6 {[%clk
0:02:55.9]} 7. Nc3 {[%clk 0:02:53.1]} 7... Ne7 {[%clk 0:02:54.3]} 8. Be2 {[%clk
0:02:53]} 8... O-O {[%clk 0:02:54.2]} 9. O-O {[%clk 0:02:53]} 9... Re8 {[%clk
0:02:54.7]} 10. cxd5 {[%clk 0:02:50.4]} 10... cxd5 {[%clk 0:02:54.6]} 11. Qb3
{[%clk 0:02:50.2]} 11... Qb6 {[%clk 0:02:46.9]} 12. Qxb6 {[%clk 0:02:48.7]}
12... axb6 {[%clk 0:02:47.8]} 13. Bg5 {[%clk 0:02:45.1]} 13... f6 {[%clk
0:02:45.5]} 14. Be3 {[%clk 0:02:45.6]} 14... Nbc6 {[%clk 0:02:41.9]} 15. Nb5
{[%clk 0:02:45.2]} 15... Bb8 {[%clk 0:02:42.2]} 16. a3 {[%clk 0:02:42.7]} 16...
Nc8 {[%clk 0:02:31.9]} 17. Nh4 {[%clk 0:02:39.4]} 17... Bd7 {[%clk 0:02:23.8]}
18. Bf3 {[%clk 0:02:18.8]} 18... Be6 {[%clk 0:02:15.8]} 19. g4 {[%clk
0:02:13.9]} 19... Nd6 {[%clk 0:02:09]} 20. Nxd6 {[%clk 0:02:11.7]} 20... Bxd6
{[%clk 0:02:09.9]} 21. Nf5 {[%clk 0:02:07.6]} 21... Bf8 {[%clk 0:02:08.7]} 22.
Rfe1 {[%clk 0:02:05.9]} 22... g6 {[%clk 0:02:08.2]} 23. Ng3 {[%clk 0:02:03.1]}
23... Na5 {[%clk 0:02:07.9]} 24. Ne2 {[%clk 0:01:48.6]} 24... Bf7 {[%clk
0:02:00.6]} 25. Nc3 {[%clk 0:01:45.4]} 25... Red8 {[%clk 0:01:52.3]} 26. Bf4
{[%clk 0:01:43.5]} 26... Rac8 {[%clk 0:01:49.8]} 27. Na4 {[%clk 0:01:35]} 27...
b5 {[%clk 0:01:35.7]} 28. Nc3 {[%clk 0:01:33.7]} 28... Nb3 {[%clk 0:01:36.2]}
29. Rad1 {[%clk 0:01:31.9]} 29... b4 {[%clk 0:01:35.8]} 30. Na4 {[%clk
0:01:15.1]} 30... bxa3 {[%clk 0:01:26.8]} 31. bxa3 {[%clk 0:01:16]} 31... Rc4
{[%clk 0:01:26.5]} 32. Nb6 {[%clk 0:01:03.5]} 32... Rxd4 {[%clk 0:01:26.8]} 33.
Bc7 {[%clk 0:00:58.6]} 33... Re8 {[%clk 0:00:27.1]} 34. Rxe8 {[%clk 0:00:52.1]}
34... Bxe8 {[%clk 0:00:22.4]} 35. Bxd5+ {[%clk 0:00:49.2]} 35... Rxd5 {[%clk
0:00:22]} 36. Nxd5 {[%clk 0:00:45.3]} 36... Kg7 {[%clk 0:00:18.2]} 37. Bd8
{[%clk 0:00:41.8]} 37... f5 {[%clk 0:00:15.7]} 38. Rb1 {[%clk 0:00:38.5]} 38...
Nc5 {[%clk 0:00:13.9]} 39. Be7 {[%clk 0:00:32.7]} 39... Bc6 {[%clk 0:00:12.3]}
40. Bxf8+ {[%clk 0:00:31]} 40... Kxf8 {[%clk 0:00:13.2]} 41. Ne3 {[%clk
0:00:28.9]} 41... Be4 {[%clk 0:00:12.8]} 42. Rb5 {[%clk 0:00:22.6]} 42... Nd3
{[%clk 0:00:12.7]} 43. gxf5 {[%clk 0:00:20.6]} 43... gxf5 {[%clk 0:00:12.3]} 44.
Nxf5 {[%clk 0:00:20.6]} 44... Nf4 {[%clk 0:00:12.8]} 45. Kh2 {[%clk 0:00:19.1]}
45... Nd5 {[%clk 0:00:09.4]} 46. Ne3 {[%clk 0:00:18.1]} 46... Nc3 {[%clk
0:00:09.1]} 47. Rb4 {[%clk 0:00:16.8]} 47... Bf3 {[%clk 0:00:07.6]} 48. Rf4+
{[%clk 0:00:14.8]} 1-0